[Event "44th Chess Olympiad Open 2022"]
[Site "Chennai"]
[Date "2022.07.30"]
[Round "2.43"]
[White "Dornbusch, Tatiana"]
[Black "Stefansson, Hannes"]
[Result "0-1"]
[WhiteElo "2247"]
[BlackElo "2541"]
[Annotator "ChessBase"]
[PlyCount "68"]
[EventDate "2022.??.??"]
[TimeControl "60"]

1. d4 {[%emt 0:00:13]} Nf6 {[%emt 0:00:12]} 2. Bg5 {[%emt 0:00:26]} d5 {
[%emt 0:01:04]} 3. Bxf6 {[%emt 0:11:47]} gxf6 {[%emt 0:00:29]} 4. c4 {[%emt 0:
00:00]} dxc4 {[%emt 0:07:17]} 5. e3 {[%emt 0:07:33]} c5 {[%emt 0:04:05]} 6. Nc3
{[%emt 0:20:28]} cxd4 {[%emt 0:02:19]} 7. exd4 {[%emt 0:01:12]} Nc6 {[%emt 0:
00:00]} 8. Bxc4 {[%emt 0:09:16]} Qxd4 {[%emt 0:05:57]} 9. Qxd4 {[%emt 0:05:47]}
Nxd4 {[%emt 0:03:16]} 10. Rd1 {[%emt 0:01:56]} Nc2+ {[%emt 0:11:30]} 11. Kf1 {
[%emt 0:02:59]} Bh6 {[%emt 0:01:15]} 12. Nd5 {[%emt 0:07:12]} Bg4 {[%emt 0:00:
00]} 13. f3 {[%emt 0:02:24]} Bf5 {[%emt 0:01:39]} 14. g4 {[%emt 0:06:29]} Bg6 {
[%emt 0:01:47]} 15. h4 {[%emt 0:10:13]} e6 {[%emt 0:03:03]} 16. Nxf6+ {[%emt 0:
00:00]} Ke7 {[%emt 0:00:46]} 17. Rd7+ {[%emt 0:00:40]} Kxf6 {[%emt 0:00:07]}
18. g5+ {[%emt 0:00:30]} Ke5 {[%emt 0:06:59]} 19. Kf2 {[%emt 0:00:53]} Rac8 {
[%emt 0:02:52]} 20. b3 {[%emt 0:00:53]} Rhd8 {[%emt 0:08:48]} 21. Rxd8 {
[%emt 0:00:41]} Rxd8 {[%emt 0:00:07]} 22. gxh6 {[%emt 0:00:03]} Rd2+ {[%emt 0:
00:00]} 23. Ne2 {[%emt 0:00:12]} Na3 {[%emt 0:01:35]} 24. h5 {[%emt 0:01:07]}
Bf5 {[%emt 0:00:32]} 25. Rc1 {[%emt 0:00:54]} Rxa2 {[%emt 0:01:51]} 26. Ke3 {
[%emt 0:00:39]} Nc2+ {[%emt 0:01:45]} 27. Kd2 {[%emt 0:00:06]} Na3+ {[%emt 0:
00:00]} 28. Ke3 {[%emt 0:00:16]} Rb2 {[%emt 0:00:15]} 29. Nd4 {[%emt 0:00:40]}
Nc2+ {[%emt 0:02:26]} 30. Nxc2 {[%emt 0:00:38]} Bxc2 {[%emt 0:00:06]} 31. f4+ {
[%emt 0:00:38]} Kf6 {[%emt 0:01:19]} 32. Kd4 {[%emt 0:00:40]} Bf5 {[%emt 0:00:
00]} 33. Ra1 {[%emt 0:00:24]} a6 {[%emt 0:00:36]} 34. Rg1 {[%emt 0:00:40]} b5 {
[%emt 0:01:08]} 0-1

[Event "44th Chess Olympiad Open 2022"]
[Site "Chennai"]
[Date "2022.07.30"]
[Round "2.43"]
[White "Van Hoolandt, Patrick"]
[Black "Petursson, Margeir"]
[Result "1/2-1/2"]
[WhiteElo "2044"]
[BlackElo "2450"]
[Annotator "TA"]
[PlyCount "133"]
[EventDate "2022.??.??"]
[TimeControl "60"]

{[%evp 22,133,0,-26,-12,-15,-18,-24,-17,-26,-23,-21,-3,-16,-25,-8,0,-4,0,0,8,0,
0,-20,14,14,0,-24,0,0,0,-33,0,-34,0,-31,0,-37,-32,-58,-42,-50,25,-56,-14,-43,
-44,-58,-28,-29,-29,-31,0,0,0,-10,-8,-25,0,-31,-32,-31,-9,-44,-32,-32,-30,-63,
-31,-60,-46,-58,-29,-31,0,-37,0,-35,-28,-41,-34,-39,-31,-39,-39,-62,-62,-62,
-62,-62,-62,-65,-66,-65,-65,-65,-65,-65,-66,-66,-53,-53,-53,-53,-53,-53,-53,
-53,-53,-53,-53,-53,-53,-53]} 1. d4 {[%emt 0:00:12]} Nf6 {[%emt 0:00:09]} 2. c4
{[%emt 0:00:10]} e6 {[%emt 0:00:09]} 3. Nf3 {[%emt 0:00:09]} b6 {[%emt 0:00:43]
} 4. Nc3 {[%emt 0:01:12]} Bb4 {[%emt 0:00:30]} 5. Bg5 {[%emt 0:01:08][%cal
Yc1g5,Yg5h4,Yh4g3]} Bb7 {[%emt 0:01:50]} 6. e3 {[%emt 0:00:41]} h6 {[%emt 0:03:
14]} 7. Bh4 {[%emt 0:00:07]} g5 {[%emt 0:00:46]} 8. Bg3 {[%emt 0:00:00]} Ne4 {
[%emt 0:00:58]} 9. Qc2 {[%emt 0:00:08]} Bxc3+ {[%emt 0:00:42]} 10. bxc3 {
[%emt 0:00:06]} d6 {[%emt 0:00:43]} 11. Bd3 {[%emt 0:00:11]} f5 {[%emt 0:00:00]
} 12. d5 {[%emt 0:00:08]} Na6 {[%emt 0:06:10] E13: Queen's Indian/
Nimzo-Indian hybrid: 4 Nc3 Bb7 5 Bg5 h6 6 Bh4 Bb4.} ({Reject} 12... exd5 13.
cxd5 Bxd5 14. Nd4 $11) 13. Bxe4 {[%emt 0:22:55]} fxe4 {[%emt 0:00:19]} 14. Qxe4
{[%emt 0:00:07] [#] And now Qg6+ would win.} Qf6 {[%emt 0:08:44] Against Qg6+.
Black has an edge.} 15. Qxe6+ {[%emt 0:09:41]} Qxe6 {[%emt 0:00:15]} 16. dxe6 {
[%emt 0:00:03]} O-O-O {[%emt 0:03:59]} (16... Nc5 {is more complex.} 17. h4 Ke7
18. O-O-O Ne4) 17. O-O {[%emt 0:04:40]} Nc5 {[%emt 0:10:53] Black has
compensation.} 18. Nd4 {[%emt 0:02:05]} Rde8 {[%emt 0:04:39]} 19. f3 {[%emt 0:
04:09]} Ba6 {[%emt 0:04:03]} 20. Nb5 {[%emt 0:00:42]} Kb8 {[%emt 0:00:00]} 21.
e4 {[%emt 0:11:38]} Rxe6 {[%emt 0:02:24]} 22. Rad1 {[%emt 0:10:53] [#]} Rhe8
$146 {[%emt 0:05:27]} ({Predecessor:} 22... h5 23. h4 gxh4 24. Bxh4 Nd7 25. Rf2
Ne5 26. Nd4 Rg6 27. c5 dxc5 28. Nf5 Nd3 {½-½ (60) Dosi,A (2563) -Karacsony,Z
(2621) ICCF email 2007}) 23. Rfe1 {[%emt 0:08:33]} Na4 {[%emt 0:00:00]} 24. Rb1
{[%emt 0:14:25] Prevents Nb2.} Nc5 {[%emt 0:08:45]} 25. Rbd1 {[%emt 0:02:11]}
Nd7 {[%emt 0:01:02]} 26. Rd4 {[%emt 0:04:15]} Bc8 {[%emt 0:00:00]} 27. Red1 {
[%emt 0:00:22]} Nc5 {[%emt 0:02:45]} 28. R4d2 {[%emt 0:01:14]} Na4 {[%emt 0:02:
20]} (28... g4 $5) 29. Rc2 {[%emt 0:01:10]} Rg6 {[%emt 0:01:24]} 30. h3 {
[%emt 0:00:25]} Be6 {[%emt 0:02:58]} 31. Rd4 {[%emt 0:01:09]} Bf7 {[%emt 0:05:
02]} (31... Bg8 $15) 32. Kh2 {[%emt 0:00:46]} (32. e5 $11 dxe5 33. Rd7 Bxc4 34.
Nxc7) 32... Nc5 {[%emt 0:00:58][%cal Ya4c5,Yc5e6,Ye6f4]} 33. Na3 {[%emt 0:00:
30]} h5 {[%emt 0:01:42][%cal Yh6h5,Yh5h4]} 34. Re2 {[%emt 0:00:25]} h4 {
[%emt 0:00:45]} 35. Bf2 {[%emt 0:00:29]} Ne6 {[%emt 0:00:00]} 36. Rd1 {[%emt 0:
00:09]} Nf4 {[%emt 0:00:51]} 37. Rb2 {[%emt 0:00:19]} Re5 {[%emt 0:01:25]
Inhibits c5.} 38. c5 {[%emt 0:01:18]} dxc5 {[%emt 0:00:34]} 39. Rd8+ {[%emt 0:
00:20]} Kb7 {[%emt 0:00:13]} 40. Rbd2 {[%emt 0:00:33]} Re7 {[%emt 0:03:55]} 41.
Be3 {[%emt 0:07:04]} Nh5 {[%emt 0:02:30]} 42. Kg1 {[%emt 0:00:00][%cal Yh2g1,
Yg1f2,Yf2e1,Ye1d1,Yd1c1,Yc1b1]} Kc6 {[%emt 0:04:30]} 43. Kf2 {[%emt 0:02:15]}
Nf6 {[%emt 0:02:05]} 44. Ke1 {[%emt 0:07:53]} Nd7 {[%emt 0:03:03]} 45. Rh8 {
[%emt 0:01:24]} Rg7 {[%emt 0:00:55]} 46. Kd1 {[%emt 0:00:00]} a6 {[%emt 0:03:
57]} (46... Ne5 $5 {[%cal Re7d7]}) 47. Kc1 {[%emt 0:00:00]} Re6 {[%emt 0:03:43]
} 48. Ra8 {[%emt 0:01:07]} Rd6 {[%emt 0:01:24]} 49. Kb1 {[%emt 0:02:22]} Ne5 {
[%emt 0:05:10]} 50. Rd8 {[%emt 0:02:34]} Rgg6 {[%emt 0:00:00] Black is
slightly better.} 51. Nc2 {[%emt 0:00:38]} Bc4 {[%emt 0:00:54]} 52. R2xd6+ {
[%emt 0:00:25]} cxd6 {[%emt 0:00:24]} 53. Rf8 {[%emt 0:00:47]} Bf1 {[%emt 0:01:
38]} 54. Ne1 {[%emt 0:00:11]} Nd3 {[%emt 0:00:40]} 55. Nxd3 {[%emt 0:00:12]}
Bxd3+ $15 {[%emt 0:00:07] Endgame KRB-KRB} 56. Kb2 {[%emt 0:00:31]} Bf1 {
[%emt 0:01:03][%cal Yd3f1,Yf1g2,Yg2f3]} 57. Rf5 {[%emt 0:00:15]} ({Much weaker
is} 57. Rc8+ Kb7 58. Rf8 Bxg2 $17) 57... Bxg2 {[%emt 0:00:26]} 58. Rxg5 {
[%emt 0:00:52]} Rxg5 {[%emt 0:00:08]} 59. Bxg5 {[%emt 0:00:02]} Bxf3 {[%emt 0:
00:07]} 60. Bxh4 {[%emt 0:00:18]} Bxe4 {[%emt 0:00:00] KB-KB} 61. Bf6 {[%emt 0:
00:26]} Kd5 {[%emt 0:00:43]} 62. Be7 {[%emt 0:00:00]} Ke5 {[%emt 0:01:58]} 63.
Bd8 {[%emt 0:00:21]} b5 {[%emt 0:00:08]} 64. Be7 {[%emt 0:00:29]} Ke6 {[%emt 0:
00:31]} 65. Bf8 {[%emt 0:00:13]} a5 {[%emt 0:00:00]} 66. a3 {[%emt 0:00:16]}
Bf3 {[%emt 0:00:35]} 67. h4 {[%emt 0:00:33] Weighted Error Value: White=0.15 
(very precise) /Black=0.15 (very precise)} 1/2-1/2

[Event "44th Chess Olympiad Open 2022"]
[Site "Chennai"]
[Date "2022.07.30"]
[Round "2.44"]
[White "Panjwani, Raja"]
[Black "Kawuma, Patrick"]
[Result "1-0"]
[WhiteElo "2450"]
[BlackElo "2270"]
[Annotator "TA"]
[PlyCount "69"]
[EventDate "2022.??.??"]
[TimeControl "60"]

{[%evp 14,69,35,26,49,39,70,61,71,68,71,67,70,80,112,113,121,123,151,118,140,
133,128,73,65,0,0,0,0,0,0,0,0,0,0,0,0,-9,-16,-10,0,0,56,61,321,287,527,434,434,
434,434,434,434,385,434,434,427,392]} 1. d4 {[%emt 0:00:03]} Nf6 {[%emt 0:00:
00]} 2. Nf3 {[%emt 0:00:14]} e6 {[%emt 0:00:54]} 3. c4 {[%emt 0:00:08]} Bb4+ {
[%emt 0:01:17]} 4. Bd2 {[%emt 0:04:46]} Qe7 {[%emt 0:01:21]} 5. g3 {[%emt 0:00:
00]} b6 {[%emt 0:04:07]} 6. Bg2 {[%emt 0:01:10]} Bb7 {[%emt 0:00:09]} 7. O-O {
[%emt 0:01:27]} Bxd2 {[%emt 0:00:18]} 8. Qxd2 {[%emt 0:07:51][%cal Yd4d5]} a5 {
[%emt 0:06:41] E16: Queen's Indian: 4 g3 Bb7 5 Bg2 Bb4+.} 9. Nc3 {[%emt 0:00:
00]} d6 {[%emt 0:02:15]} 10. Qc2 {[%emt 0:03:52]} O-O {[%emt 0:12:24] White is
slightly better.} 11. e4 {[%emt 0:00:36]} e5 {[%emt 0:01:38]} 12. Nd5 {[%emt 0:
00:00]} Nxd5 {[%emt 0:01:37]} 13. cxd5 {[%emt 0:02:55]} exd4 {[%emt 0:02:50]}
14. Nxd4 {[%emt 0:00:15]} Na6 {[%emt 0:00:41][%cal Yb8a6,Ya6c5,Yc5d7,Yd7f6]}
15. a3 {[%emt 0:07:37]} Rfe8 {[%emt 0:07:50] [#]} 16. Rac1 $146 {[%emt 0:13:29]
White is more active.} ({Predecessor:} 16. Rab1 Nc5 17. Nf5 Qf6 18. b4 axb4 19.
axb4 Na6 20. Ne3 Qd8 21. Bh3 Bc8 22. Bxc8 Rxc8 {0-1 (90) Bosbach,G-Berner,W
Bern 1977}) 16... g6 {[%emt 0:27:15]} 17. Rfe1 {[%emt 0:00:00]} Qf6 {[%emt 0:
04:16]} 18. Qc4 {[%emt 0:04:12]} ({White should play} 18. Red1) 18... Nc5 {
[%emt 0:02:15]} 19. b4 {[%emt 0:04:19]} ({White should try} 19. Re3 $14) 19...
axb4 $1 $11 {[%emt 0:01:07]} 20. axb4 {[%emt 0:00:06]} Ba6 {[%emt 0:02:12]} 21.
Nb5 $1 {[%emt 0:01:44]} Nd7 {[%emt 0:12:07]} 22. f4 {[%emt 0:00:06][%cal Ye4e5]
} Bxb5 {[%emt 0:05:12]} 23. Qxb5 {[%emt 0:00:08]} Qd4+ {[%emt 0:00:05]} 24. Kh1
{[%emt 0:00:08]} Nf6 {[%emt 0:00:10][%cal Rf6e4]} 25. Qc4 $36 {[%emt 0:05:27]
White is pushing.} Qxc4 {[%emt 0:01:46]} 26. Rxc4 {[%emt 0:00:05]} Ra4 {
[%emt 0:00:39]} 27. e5 {[%emt 0:01:59]} dxe5 {[%emt 0:00:35]} ({Better is} 
27... Re7 $11) 28. fxe5 $14 {[%emt 0:00:56]} b5 $2 {[%emt 0:00:30] A mistake
that costs the game.} (28... Ra7 $1 $14) 29. Rxc7 $18 {[%emt 0:02:51] And now
d6 would win.} Ng4 $2 {[%emt 0:00:25]} (29... Rxb4 30. d6 Rxe5 31. Rxe5 Rb1+
32. Bf1 Rxf1+ 33. Kg2 Rd1 34. Rxb5 Rd2+ 35. Kf3 Rd3+ 36. Ke2 Rxd6) 30. e6 {
[%emt 0:02:06]} fxe6 {[%emt 0:00:06]} 31. dxe6 {[%emt 0:01:34] [#] Hoping for
Bc6.} Rxb4 {[%emt 0:00:37]} 32. Bc6 {[%emt 0:00:46]} Rc4 {[%emt 0:00:19]} 33.
e7 {[%emt 0:00:55]} Nf6 {[%emt 0:00:00]} 34. Bxe8 {[%emt 0:00:27] White
threatens Bc6 and mate.} Rxc7 {[%emt 0:00:00]} 35. Bxb5 {[%emt 0:00:05]
Weighted Error Value: White=0.16 (very precise) / Black=0.38} 1-0

[Event "44th Chess Olympiad Open 2022"]
[Site "Chennai"]
[Date "2022.07.30"]
[Round "2.44"]
[White "Samsonkin, Artiom"]
[Black "Nsubuga, Haruna"]
[Result "1-0"]
[WhiteElo "2434"]
[BlackElo "2160"]
[Annotator "RC"]
[PlyCount "55"]
[EventDate "2022.??.??"]
[TimeControl "60"]

1. e4 {[%emt 0:00:07]} c5 {[%emt 0:03:17]} 2. Nf3 {[%emt 0:00:23]} Nc6 {
[%emt 0:00:10]} 3. Bb5 {[%emt 0:00:27]} g6 {[%emt 0:00:09]} 4. c3 {[%emt 0:00:
00]} Bg7 {[%emt 0:03:18]} 5. d4 {[%emt 0:00:31]} cxd4 {[%emt 0:00:50]} 6. cxd4
{[%emt 0:00:23]} Qb6 {[%emt 0:00:11]} 7. Nc3 {[%emt 0:03:06]} Nxd4 {[%emt 0:00:
00]} 8. Nd5 {[%emt 0:02:52]} Qc5 {[%emt 1:05:04]} 9. Nxd4 {[%emt 0:01:17]} Bxd4
{[%emt 0:00:09]} 10. O-O {[%emt 0:00:51]} Be5 {[%emt 0:00:32]} 11. Be3 {
[%emt 0:09:22]} Qxb5 {[%emt 0:00:35]} 12. Bd4 {[%emt 0:00:05]} Bd6 {[%emt 0:00:
00]} 13. Bxh8 {[%emt 0:00:19]} f6 {[%emt 0:01:58]} 14. Nxf6+ {[%emt 0:03:45]}
Nxf6 {[%emt 0:00:08]} 15. Bxf6 {[%emt 0:00:22]} b6 {[%emt 0:01:28]} 16. a4 {
[%emt 0:06:38]} Qc4 {[%emt 0:00:42]} 17. Bd4 {[%emt 0:03:59]} Ba6 {[%emt 0:00:
00]} 18. Re1 {[%emt 0:00:31]} Qf7 {[%emt 0:01:18]} 19. Qd2 {[%emt 0:03:13]} Bb7
{[%emt 0:01:10]} 20. f3 {[%emt 0:00:36]} Bc6 {[%emt 0:00:17]} 21. e5 {[%emt 0:
00:00]} Bc7 {[%emt 0:00:33]} 22. Rac1 {[%emt 0:01:10]} Qd5 {[%emt 0:00:47]} 23.
Qc3 {[%emt 0:03:50]} Rc8 {[%emt 0:00:20]} 24. e6 {[%emt 0:01:39]} Qh5 {[%emt 0:
00:00]} 25. Be5 {[%emt 0:00:33]} Bd8 {[%emt 0:00:56]} 26. Qb3 {[%emt 0:05:32]}
dxe6 {[%emt 0:01:08]} 27. Rxc6 {[%emt 0:01:02]} Qh4 {[%emt 0:00:31]} 28. g3 {
[%emt 0:00:44]} 1-0

[Event "44th Chess Olympiad Open 2022"]
[Site "Chennai"]
[Date "2022.07.30"]
[Round "2.44"]
[White "Wanyama, Harold"]
[Black "Hansen, Eric"]
[Result "0-1"]
[WhiteElo "2242"]
[BlackElo "2606"]
[Annotator "TA"]
[PlyCount "68"]
[EventDate "2022.??.??"]
[TimeControl "60"]

{[%evp 12,68,25,25,69,58,65,36,56,66,68,60,84,81,85,51,50,59,136,109,92,78,127,
134,130,141,129,133,143,163,162,-76,-68,-232,-246,-241,-204,-248,-228,-255,
-232,-283,-285,-315,-312,-299,-295,-306,0,-180,-123,-278,-280,-897,-890,-1690,
-1629,-29993,-29994]} 1. d4 {[%emt 0:00:11]} Nf6 {[%emt 0:00:35]} 2. c4 {
[%emt 0:00:26]} e6 {[%emt 0:01:50]} 3. g3 {[%emt 0:00:56]} d5 {[%emt 0:09:02]
[%cal Yd7d5,Yd5c4]} 4. Bg2 {[%emt 0:00:16]} dxc4 {[%emt 0:02:46]} 5. Nf3 {
[%emt 0:01:03]} Nc6 {[%emt 0:05:47]} 6. Qa4 {[%emt 0:04:14]} Bb4+ {[%emt 0:00:
38]} 7. Bd2 {[%emt 0:00:31]} Bxd2+ {[%emt 0:00:42] E04: Open Catalan: 5 Nf3.}
8. Nbxd2 {[%emt 0:00:35]} O-O {[%emt 0:00:36]} 9. Qxc4 {[%emt 0:00:33]} e5 $5 {
[%emt 0:10:53] White is slightly better. A promising side line.} 10. dxe5 {
[%emt 0:03:11]} Ng4 {[%emt 0:00:20]} 11. Qc3 {[%emt 0:05:47]} Qe7 {[%emt 0:14:
43]} 12. Nc4 {[%emt 0:18:38]} Re8 {[%emt 0:00:00]} 13. Rd1 {[%emt 0:02:27] [#]}
Be6 $146 {[%emt 0:02:04]} ({Predecessor:} 13... Qc5 14. O-O Be6 15. Rc1 Rad8
16. h3 Qxc4 17. Qxc4 Bxc4 18. Rxc4 Ngxe5 19. Nxe5 Rxe5 {½-½ (61)
Dzhumagaliev,Y (2367)-Chuguev,A (2266) Novosibirsk 2010}) 14. Na5 {[%emt 0:06:
25]} Bxa2 {[%emt 0:17:56]} (14... Nxa5 $14 15. Qxa5 Bf5) 15. Nxc6 {[%emt 0:04:
34]} bxc6 {[%emt 0:00:05]} 16. Nd4 {[%emt 0:03:22]} Qxe5 {[%emt 0:08:02]} ({
Black should play} 16... Nxe5 17. O-O Rab8) 17. Bxc6 $16 {[%emt 0:07:17]} Bd5 {
[%emt 0:00:06]} 18. Bxa8 {[%emt 0:06:35]} Bxa8 {[%emt 0:00:00]} 19. O-O {
[%emt 0:00:34]} (19. f3 $6 c5 20. O-O cxd4 21. Rxd4 Nf6 $11) 19... Nxh2 {
[%emt 0:01:00]} 20. Rfe1 {[%emt 0:13:13]} Qh5 {[%emt 0:00:16]} 21. e4 $2 {
[%emt 0:10:02]} (21. f3 $2 Ng4 $1 22. fxg4 Qh1+ 23. Kf2 Qg2#) ({White must play
} 21. Nf3 $1 $18 {[%cal Rf3h2]} Ng4 22. e4) 21... c5 $40 {[%emt 0:01:12] Black
has some attack.} ({Much less strong is} 21... Ng4 22. Nf3 $16) 22. Nf5 {
[%emt 0:02:33]} (22. Qa5 $15) 22... Nf3+ $19 {[%emt 0:00:21]} 23. Kf1 {[%emt 0:
00:29][%csl Gf5][%cal Rc3g7]} Qh3+ {[%emt 0:00:00]} 24. Ke2 {[%emt 0:00:08]
[%csl Gf5][%cal Rc3g7]} Rxe4+ {[%emt 0:01:16]} (24... Qxf5 25. Qxf3 Qe5 26. Qc3
$16 (26. Kf1 Qxb2 27. Kg1 Qb5 $14)) 25. Ne3 {[%emt 0:01:24] White wants to
mate with Rd8+.} Re8 {[%emt 0:02:25] Inhibits Rd8. aiming for ...Qh5. Dancing
on a razor blade.} 26. Qxc5 {[%emt 0:03:18]} Nxe1 {[%emt 0:00:13]} 27. Rxe1 {
[%emt 0:00:04]} Qg4+ {[%emt 0:00:30]} 28. Kd2 {[%emt 0:00:10]} Qd7+ {[%emt 0:
01:59]} ({Stronger than} 28... Qf3 29. Nd1 Rd8+ 30. Kc1 $17) 29. Ke2 {[%emt 0:
00:26]} Qg4+ {[%emt 0:00:07]} (29... Bb7 $142 {Hoping for ...Ba6+.} 30. Ra1
Qg4+ 31. Ke1 Qe4) 30. Kd2 {[%emt 0:00:08] [#]} Rd8+ {[%emt 0:00:19]} ({Black
should try} 30... Qf3 $1 $19 {[%cal Rf3f2]} 31. Nf5 Rd8+ 32. Kc1 Qd3) 31. Kc3
$2 {[%emt 0:00:13] [#]} (31. Kc1 $17 {only move.} Qe6 32. Nc2) 31... Qe6 $1 {
[%emt 0:01:20]} 32. Qxa7 $2 {[%emt 0:02:12]} (32. Nc2 Qd7 33. Qd4 Qc8+ 34. Qc4)
32... Qe5+ {[%emt 0:00:12]} 33. Kc2 {[%emt 0:00:00]} Be4+ {[%emt 0:00:08]} 34.
Kc1 {[%emt 0:01:10]} Rc8+ {[%emt 0:00:06] Weighted Error Value: White=0.77/
Black=0.19 (very precise)} 0-1

[Event "44th Chess Olympiad Open 2022"]
[Site "Chennai"]
[Date "2022.07.30"]
[Round "2.44"]
[White "Okas, Walter"]
[Black "Noritsyn, Nikolay"]
[Result "0-1"]
[WhiteElo "2191"]
[BlackElo "2482"]
[Annotator "TA"]
[PlyCount "96"]
[EventDate "2022.??.??"]
[TimeControl "60"]

{[%evp 9,96,8,11,14,11,21,0,0,15,-21,21,10,27,-35,-27,-27,18,-54,-8,-38,-43,
-43,-25,-37,-40,-72,-94,-96,-78,-95,-86,-77,-89,-122,-115,-114,-133,-131,-133,
-262,-212,-260,-269,-241,-260,-260,-250,-452,-441,-422,-437,-454,-452,-440,
-440,-483,-442,-601,-522,-598,-526,-498,-483,-526,-528,-514,-505,-616,-573,
-643,-616,-666,-636,-614,-604,-639,-634,-628,-618,-640,-635,-627,-620,-605,
-591,-803,-787,-680,-544]} 1. d4 {[%emt 0:00:17]} d5 {[%emt 0:00:29]} 2. Nf3 {
[%emt 0:01:24]} e6 {[%emt 0:00:14]} 3. g3 {[%emt 0:00:39]} b5 {[%emt 0:01:00]}
4. Bg2 {[%emt 0:00:31]} Nf6 {[%emt 0:00:13]} 5. O-O {[%emt 0:00:49]} Be7 {
[%emt 0:02:25]} 6. Ne5 {[%emt 0:01:19] A46:1 d4 Nf6 2 Nf3 e6: Torre, London
and Colle Systems.} O-O {[%emt 0:04:47]} 7. a4 {[%emt 0:01:29]} b4 {[%emt 0:00:
00]} 8. c4 {[%emt 0:00:26] The position is equal.} Bb7 {[%emt 0:09:02] [#]} (
8... bxc3 $5 9. Nxc3 a5 $11) 9. Qc2 $146 {[%emt 0:04:29]} ({Predecessor:} 9. c5
Nc6 10. f4 a5 11. h3 Nd7 12. Kh2 Ncxe5 13. fxe5 f6 14. exf6 Nxf6 15. Bf4 {
1-0 (52) Stefanova,A (2462)-Vaishali,R (2393) Chess.com INT 2020}) 9... c6 {
[%emt 0:06:41]} 10. Rd1 {[%emt 0:02:56]} Nbd7 {[%emt 0:01:26]} 11. a5 {[%emt 0:
00:00]} (11. Nxd7 $11 Nxd7 12. Nd2) 11... Nxe5 $15 {[%emt 0:10:56]} 12. dxe5 {
[%emt 0:00:28]} Nd7 {[%emt 0:00:14]} 13. e4 {[%emt 0:04:44]} ({White should
play} 13. a6 $11 Bc8 14. cxd5 cxd5 15. e4) 13... Rc8 {[%emt 0:02:16]} (13...
Ba6 $15 {should be considered.}) 14. a6 {[%emt 0:07:18]} Ba8 {[%emt 0:00:10]}
15. Qe2 {[%emt 0:02:13][%cal Rc4d5]} Nb6 {[%emt 0:05:17]} ({Resist} 15... Nxe5
16. exd5 Bf6 17. dxe6 $16) 16. Nd2 {[%emt 0:13:54]} Qc7 {[%emt 0:01:49]} 17. f4
{[%emt 0:03:10]} Rfd8 {[%emt 0:02:20] White is on the road to losing.} 18. Re1
{[%emt 0:02:14]} Bc5+ {[%emt 0:13:54]} 19. Kh1 {[%emt 0:00:58] [#]} Bd4 $1 {
[%emt 0:02:41]} 20. cxd5 {[%emt 0:12:43]} cxd5 {[%emt 0:00:10]} 21. Nb3 {
[%emt 0:00:29]} dxe4 {[%emt 0:01:54]} 22. Bxe4 {[%emt 0:00:54]} Bxe4+ {[%emt 0:
00:00]} 23. Qxe4 {[%emt 0:00:39]} Qc4 {[%emt 0:00:44]} 24. Nd2 {[%emt 0:15:39]}
(24. Be3 $17 {was worth a try.} Bxb2 25. Bxb6 Qxb3 26. Bxd8 Bxa1 27. Rxa1 Rxd8
28. Rb1) 24... Qc2 $19 {[%emt 0:00:35]} 25. Nf3 {[%emt 0:03:01]} Bf2 {[%emt 0:
00:00]} ({Stronger than} 25... Bxb2 26. Bxb2 Qxb2 27. Rab1 $17) 26. Qxc2 {
[%emt 0:09:51]} Rxc2 {[%emt 0:00:09]} 27. Rf1 {[%emt 0:00:07]} h6 {[%emt 0:00:
00]} 28. Bd2 $2 {[%emt 0:05:13]} (28. Kg2 Bc5+ 29. Kh3) 28... Rdxd2 {[%emt 0:
00:00] Black is clearly winning.} 29. Nxd2 {[%emt 0:00:17]} Rxd2 {[%emt 0:00:
00]} 30. b3 {[%emt 0:00:41]} Nd5 {[%emt 0:01:16]} 31. Rfd1 {[%emt 0:00:26]} Rb2
{[%emt 0:00:55]} 32. Rd3 {[%emt 0:00:26]} Bb6 {[%emt 0:01:10]} 33. h3 {[%emt 0:
00:00]} h5 {[%emt 0:01:24]} 34. f5 {[%emt 0:00:15]} Re2 {[%emt 0:00:26]} 35.
Rc1 {[%emt 0:00:23]} Rxe5 {[%emt 0:00:46]} 36. Rc8+ {[%emt 0:00:17]} Kh7 {
[%emt 0:00:08]} 37. fxe6 {[%emt 0:00:18]} fxe6 {[%emt 0:00:06]} 38. Rf8 {
[%emt 0:00:30]} Kg6 {[%emt 0:04:51]} 39. Kg2 {[%emt 0:01:21]} Re2+ {[%emt 0:00:
00]} 40. Kh1 {[%emt 0:00:00]} Ra2 {[%emt 0:00:56]} 41. Re8 {[%emt 0:29:48]} Kf7
{[%emt 0:30:22]} 42. Rh8 {[%emt 0:00:40]} Nf6 {[%emt 0:01:38] Hoping for ...
Ne4.} 43. Rf3 {[%emt 0:00:00]} Kg6 {[%emt 0:00:00]} 44. Rf4 {[%emt 0:00:00]}
Rxa6 {[%emt 0:00:00]} 45. Rxb4 {[%emt 0:00:00]} Ra1+ {[%emt 0:00:00]} 46. Kg2 {
[%emt 0:00:00]} Ra2+ {[%emt 0:00:00]} 47. Kh1 {[%emt 0:00:00]} e5 {[%emt 0:00:
00][%cal Ye6e5,Ye5e4] [#] Strongly threatening ...e4.} 48. Rc8 {[%emt 0:00:00]}
e4 {[%emt 0:00:00] Weighted Error Value: White=0.38/Black=0.14 (very precise)}
0-1